[Event "*** Titled Tuesday Blitz"]
[Site "Chess.com"]
[Date "2021.04.06"]
[Round "3"]
[White "Pawnpusherschessaccademy"]
[Black "colegiodemadrid"]
[Result "0-1"]
[WhiteElo "2244"]
[BlackElo "2505"]
[TimeControl "180+1"]
[EndTime "10:26:46 PDT"]
[Termination "colegiodemadrid won by resignation"]

1. e4 {[%clk 0:03:00.9]} 1... c5 {[%clk 0:02:56.1]} 2. Nc3 {[%clk 0:02:56.7]}
2... e6 {[%clk 0:02:55.4]} 3. f4 {[%clk 0:02:57.3]} 3... a6 {[%clk 0:02:54.6]}
4. Nf3 {[%clk 0:02:57.8]} 4... d5 {[%clk 0:02:54.4]} 5. d3 {[%clk 0:02:57]} 5...
Nf6 {[%clk 0:02:52.4]} 6. Qe2 {[%clk 0:02:55.8]} 6... Nc6 {[%clk 0:02:50.9]} 7.
g3 {[%clk 0:02:55.5]} 7... Be7 {[%clk 0:02:44.1]} 8. Bg2 {[%clk 0:02:55.2]} 8...
h5 {[%clk 0:02:43.7]} 9. h3 {[%clk 0:02:50.1]} 9... dxe4 {[%clk 0:02:38.8]} 10.
Nxe4 {[%clk 0:02:46.2]} 10... Bd7 {[%clk 0:02:34]} 11. b3 {[%clk 0:02:43.4]}
11... Qa5+ {[%clk 0:02:30.2]} 12. Bd2 {[%clk 0:02:41.7]} 12... Qc7 {[%clk
0:02:29.9]} 13. Bc3 {[%clk 0:02:38.6]} 13... b5 {[%clk 0:02:25.5]} 14. Bxf6
{[%clk 0:02:32.5]} 14... gxf6 {[%clk 0:02:24.5]} 15. c4 {[%clk 0:02:28.7]} 15...
f5 {[%clk 0:02:20.2]} 16. Nc3 {[%clk 0:02:24.9]} 16... Qa5 {[%clk 0:02:19.9]}
17. Rc1 {[%clk 0:02:21.7]} 17... Bf6 {[%clk 0:02:19.3]} 18. Ne5 {[%clk
0:02:21.3]} 18... Nd4 {[%clk 0:02:10.1]} 19. Qf2 {[%clk 0:02:11.1]} 19... Rd8
{[%clk 0:02:05.6]} 20. O-O {[%clk 0:02:09.8]} 20... h4 {[%clk 0:01:56.7]} 21. g4
{[%clk 0:02:08.5]} 21... fxg4 {[%clk 0:01:53.7]} 22. Ne4 {[%clk 0:01:58.1]}
22... Be7 {[%clk 0:01:47.6]} 23. Nxg4 {[%clk 0:01:48.6]} 23... f5 {[%clk
0:01:38.1]} 24. Nef6+ {[%clk 0:01:46.4]} 24... Bxf6 {[%clk 0:01:29.3]} 25. Nxf6+
{[%clk 0:01:46]} 25... Kf7 {[%clk 0:01:29.8]} 26. Nxd7 {[%clk 0:01:33.4]} 26...
Rxd7 {[%clk 0:01:30.7]} 27. Rfe1 {[%clk 0:01:32.6]} 27... b4 {[%clk 0:01:22.2]}
28. Re3 {[%clk 0:01:31.4]} 28... Qd8 {[%clk 0:01:17.6]} 29. Rce1 {[%clk
0:01:31.1]} 29... Qf6 {[%clk 0:01:16.5]} 30. Re5 {[%clk 0:01:28.8]} 30... Rc7
{[%clk 0:01:14.1]} 31. Kh2 {[%clk 0:01:23.2]} 31... Rg8 {[%clk 0:01:14]} 32. Rg1
{[%clk 0:01:16.5]} 32... Rg3 {[%clk 0:01:12.2]} 33. Bf1 {[%clk 0:01:15]} 33...
Nf3+ {[%clk 0:01:08.8]} 0-1

[Event "*** Titled Tuesday Blitz"]
[Site "Chess.com"]
[Date "2021.04.06"]
[Round "3"]
[White "2nd_life"]
[Black "PchelkinVK"]
[Result "0-1"]
[WhiteElo "2411"]
[BlackElo "2597"]
[TimeControl "180+1"]
[EndTime "10:26:48 PDT"]
[Termination "PchelkinVK won by checkmate"]

1. e4 {[%clk 0:03:00.9]} 1... e6 {[%clk 0:02:58.4]} 2. Nf3 {[%clk 0:03:00.4]}
2... d5 {[%clk 0:02:58.7]} 3. e5 {[%clk 0:03:00.9]} 3... c5 {[%clk 0:02:54.9]}
4. b4 {[%clk 0:03:01]} 4... d4 {[%clk 0:02:50.4]} 5. bxc5 {[%clk 0:02:59]} 5...
Nc6 {[%clk 0:02:50.8]} 6. Bb5 {[%clk 0:02:48.1]} 6... Bxc5 {[%clk 0:02:48]} 7.
Bxc6+ {[%clk 0:02:40.2]} 7... bxc6 {[%clk 0:02:47.3]} 8. Ba3 {[%clk 0:02:40.3]}
8... Bxa3 {[%clk 0:02:18.8]} 9. Nxa3 {[%clk 0:02:40.2]} 9... Ba6 {[%clk
0:02:18.9]} 10. Nb1 {[%clk 0:02:16]} 10... Qa5 {[%clk 0:01:57.4]} 11. Qc1 {[%clk
0:02:07.4]} 11... Rb8 {[%clk 0:01:52.4]} 12. Kd1 {[%clk 0:01:56.3]} 12... Ne7
{[%clk 0:01:38.1]} 13. d3 {[%clk 0:01:53]} 13... Nd5 {[%clk 0:01:34]} 14. Qd2
{[%clk 0:01:47.6]} 14... Qb6 {[%clk 0:01:23.1]} 15. Ke2 {[%clk 0:01:37.7]} 15...
Qb2 {[%clk 0:01:15.9]} 16. Qa5 {[%clk 0:01:20.5]} 16... Qxc2+ {[%clk 0:00:58.4]}
17. Nbd2 {[%clk 0:01:11.4]} 17... Nc3+ {[%clk 0:00:38]} 18. Kf1 {[%clk
0:01:02.7]} 18... Qxd3+ {[%clk 0:00:37.5]} 19. Kg1 {[%clk 0:01:02.6]} 19... Ne2+
{[%clk 0:00:37.5]} 20. Kf1 {[%clk 0:01:01.6]} 20... Ng3+ {[%clk 0:00:36.2]} 21.
Kg1 {[%clk 0:01:01.2]} 21... Qf1+ {[%clk 0:00:34.6]} 22. Nxf1 {[%clk 0:00:59.1]}
22... Ne2# {[%clk 0:00:34.8]} 0-1

[Event "*** Titled Tuesday Blitz"]
[Site "Chess.com"]
[Date "2021.04.06"]
[Round "3"]
[White "EvilMorty23"]
[Black "BlueWizzard"]
[Result "0-1"]
[WhiteElo "2454"]
[BlackElo "2762"]
[TimeControl "180+1"]
[EndTime "10:26:49 PDT"]
[Termination "BlueWizzard won by resignation"]

1. e4 {[%clk 0:03:00.9]} 1... d6 {[%clk 0:03:00.9]} 2. d4 {[%clk 0:03:00.8]}
2... a6 {[%clk 0:03:01.1]} 3. a4 {[%clk 0:02:57.9]} 3... Nd7 {[%clk 0:03:01.1]}
4. c3 {[%clk 0:02:57.1]} 4... b6 {[%clk 0:02:59.8]} 5. Bd3 {[%clk 0:02:56]} 5...
Bb7 {[%clk 0:03:00.2]} 6. Nf3 {[%clk 0:02:55.6]} 6... Ngf6 {[%clk 0:03:00.5]} 7.
Nbd2 {[%clk 0:02:55.6]} 7... e5 {[%clk 0:03:00.4]} 8. O-O {[%clk 0:02:55.3]}
8... Be7 {[%clk 0:02:58.4]} 9. Re1 {[%clk 0:02:55.6]} 9... O-O {[%clk
0:02:58.3]} 10. Nf1 {[%clk 0:02:56]} 10... Re8 {[%clk 0:02:56.2]} 11. Ng3 {[%clk
0:02:56.2]} 11... Bf8 {[%clk 0:02:56.8]} 12. h4 {[%clk 0:02:53.3]} 12... h6
{[%clk 0:02:55.6]} 13. h5 {[%clk 0:02:53.7]} 13... c6 {[%clk 0:02:54.6]} 14. Nf5
{[%clk 0:02:53.9]} 14... Qc7 {[%clk 0:02:54.1]} 15. N3h4 {[%clk 0:02:53.1]}
15... d5 {[%clk 0:02:52.9]} 16. f3 {[%clk 0:02:46.3]} 16... c5 {[%clk
0:02:50.3]} 17. dxe5 {[%clk 0:02:44.1]} 17... Nxe5 {[%clk 0:02:37.2]} 18. Bf4
{[%clk 0:02:44.1]} 18... c4 {[%clk 0:02:31.5]} 19. Bc2 {[%clk 0:02:43.3]} 19...
Nxh5 {[%clk 0:02:25.8]} 20. Bh2 {[%clk 0:02:36.8]} 20... g6 {[%clk 0:02:12.6]}
21. Nd4 {[%clk 0:02:11.8]} 21... dxe4 {[%clk 0:02:05.5]} 22. f4 {[%clk
0:02:07.5]} 22... Nd3 {[%clk 0:02:02.5]} 23. f5 {[%clk 0:02:04.6]} 23... Bd6
{[%clk 0:01:58.5]} 24. Bxd6 {[%clk 0:02:04.1]} 24... Qxd6 {[%clk 0:01:59.4]} 25.
fxg6 {[%clk 0:02:00]} 25... fxg6 {[%clk 0:01:52.8]} 26. Bxd3 {[%clk 0:01:59.3]}
26... exd3 {[%clk 0:01:49.1]} 27. Qg4 {[%clk 0:01:59.7]} 27... Qg3 {[%clk
0:01:39.1]} 28. Qxg6+ {[%clk 0:01:49.5]} 28... Qxg6 {[%clk 0:01:38.5]} 29. Nxg6
{[%clk 0:01:50.4]} 29... Kh7 {[%clk 0:01:29]} 30. Ne7 {[%clk 0:01:39]} 30... Nf4
{[%clk 0:01:20.1]} 31. Re5 {[%clk 0:01:33.8]} 31... Nxg2 {[%clk 0:01:12.6]} 32.
Rf1 {[%clk 0:01:32.2]} 32... Rf8 {[%clk 0:01:11.8]} 33. Nef5 {[%clk 0:01:29.8]}
33... Rae8 {[%clk 0:01:05.6]} 34. Rxe8 {[%clk 0:01:27.1]} 34... Rxe8 {[%clk
0:01:06.5]} 35. Nd6 {[%clk 0:01:26.6]} 35... Re1 {[%clk 0:01:06.5]} 36. Kf2
{[%clk 0:01:15.4]} 36... d2 {[%clk 0:01:02.1]} 37. Ne6 {[%clk 0:01:06.2]} 37...
Rxf1+ {[%clk 0:00:59]} 38. Kxf1 {[%clk 0:01:07.1]} 38... d1=Q+ {[%clk
0:00:59.4]} 0-1

[Event "*** Titled Tuesday Blitz"]
[Site "Chess.com"]
[Date "2021.04.06"]
[Round "3"]
[White "m_ezat"]
[Black "Ceejay271"]
[Result "1-0"]
[WhiteElo "2548"]
[BlackElo "2349"]
[TimeControl "180+1"]
[EndTime "10:26:55 PDT"]
[Termination "m_ezat won by resignation"]

1. d4 {[%clk 0:03:00.9]} 1... Nf6 {[%clk 0:02:59.6]} 2. c4 {[%clk 0:03:00.5]}
2... e6 {[%clk 0:02:59.9]} 3. Nc3 {[%clk 0:03:00.5]} 3... Bb4 {[%clk 0:02:59.6]}
4. e3 {[%clk 0:03:00.2]} 4... O-O {[%clk 0:02:58.3]} 5. a3 {[%clk 0:03:00.2]}
5... Bxc3+ {[%clk 0:02:57.9]} 6. bxc3 {[%clk 0:03:00.7]} 6... c5 {[%clk
0:02:56.8]} 7. Bd3 {[%clk 0:03:00.2]} 7... b6 {[%clk 0:02:54.7]} 8. Ne2 {[%clk
0:02:59.5]} 8... Ba6 {[%clk 0:02:53.6]} 9. O-O {[%clk 0:02:58.3]} 9... Nc6
{[%clk 0:02:53.6]} 10. e4 {[%clk 0:02:58.2]} 10... d6 {[%clk 0:02:53.5]} 11. Bg5
{[%clk 0:02:57.3]} 11... h6 {[%clk 0:02:52.8]} 12. Bh4 {[%clk 0:02:57.2]} 12...
e5 {[%clk 0:02:53]} 13. f4 {[%clk 0:02:55.5]} 13... exf4 {[%clk 0:02:51.2]} 14.
Nxf4 {[%clk 0:02:53]} 14... g5 {[%clk 0:02:49.3]} 15. Nh5 {[%clk 0:02:53.3]}
15... Nxh5 {[%clk 0:02:43.5]} 16. Qxh5 {[%clk 0:02:52.6]} 16... gxh4 {[%clk
0:02:43.3]} 17. Qxh6 {[%clk 0:02:52.6]} 17... f5 {[%clk 0:02:13.7]} 18. e5
{[%clk 0:02:24.6]} 18... Qe7 {[%clk 0:01:53.4]} 19. Rxf5 {[%clk 0:02:15.3]}
19... Rxf5 {[%clk 0:01:48.5]} 20. Bxf5 {[%clk 0:02:14.4]} 20... Bxc4 {[%clk
0:01:48.1]} 21. Rf1 {[%clk 0:01:52.2]} 21... Bxf1 {[%clk 0:01:27.2]} 22. Be6+
{[%clk 0:01:47.8]} 22... Qxe6 {[%clk 0:01:23.2]} 23. Qxe6+ {[%clk 0:01:46.6]}
23... Kh8 {[%clk 0:01:22.2]} 24. Qf6+ {[%clk 0:01:31.2]} 24... Kg8 {[%clk
0:01:21.5]} 25. Qg6+ {[%clk 0:01:07.2]} 25... Kh8 {[%clk 0:01:21.3]} 26. Kxf1
{[%clk 0:01:07.5]} 26... cxd4 {[%clk 0:01:10.8]} 27. Qxd6 {[%clk 0:01:00.8]}
27... Na5 {[%clk 0:01:02.4]} 28. cxd4 {[%clk 0:00:52.7]} 28... Nc4 {[%clk
0:01:01.7]} 29. Qh6+ {[%clk 0:00:50.6]} 29... Kg8 {[%clk 0:01:00.6]} 30. Qe6+
{[%clk 0:00:51.2]} 30... Kg7 {[%clk 0:00:59.8]} 31. Qxc4 {[%clk 0:00:50.4]} 1-0

[Event "*** Titled Tuesday Blitz"]
[Site "Chess.com"]
[Date "2021.04.06"]
[Round "3"]
[White "Michaelson_11"]
[Black "DrCeltic"]
[Result "0-1"]
[WhiteElo "2230"]
[BlackElo "2468"]
[TimeControl "180+1"]
[EndTime "10:26:55 PDT"]
[Termination "DrCeltic won on time"]

1. e4 {[%clk 0:03:00.9]} 1... c5 {[%clk 0:03:00]} 2. Nf3 {[%clk 0:02:59.5]} 2...
e6 {[%clk 0:03:00.4]} 3. d4 {[%clk 0:02:59.8]} 3... cxd4 {[%clk 0:03:01.3]} 4.
Nxd4 {[%clk 0:03:00.6]} 4... a6 {[%clk 0:03:02.2]} 5. Nc3 {[%clk 0:03:00.4]}
5... Qc7 {[%clk 0:03:02.8]} 6. Be3 {[%clk 0:02:59.6]} 6... Nf6 {[%clk
0:03:02.9]} 7. a3 {[%clk 0:02:41.8]} 7... b5 {[%clk 0:02:58.8]} 8. f4 {[%clk
0:02:23.7]} 8... b4 {[%clk 0:02:57.9]} 9. axb4 {[%clk 0:01:55.2]} 9... Bxb4
{[%clk 0:02:58.8]} 10. Qd3 {[%clk 0:01:55.4]} 10... Bb7 {[%clk 0:02:52]} 11. e5
{[%clk 0:01:47.4]} 11... Ne4 {[%clk 0:02:51.4]} 12. Ne2 {[%clk 0:01:33.8]} 12...
O-O {[%clk 0:02:41.4]} 13. Bd4 {[%clk 0:01:13.3]} 13... d5 {[%clk 0:02:32.2]}
14. exd6 {[%clk 0:01:03.2]} 14... Nxd6 {[%clk 0:02:22.1]} 15. O-O-O {[%clk
0:00:42.4]} 15... Nf5 {[%clk 0:02:12.9]} 16. Be5 {[%clk 0:00:35.6]} 16... Qb6
{[%clk 0:02:08.5]} 17. Kb1 {[%clk 0:00:14.2]} 17... Nc6 {[%clk 0:02:03.6]} 18.
g4 {[%clk 0:00:06.4]} 18... Nxe5 {[%clk 0:01:59.1]} 19. fxe5 {[%clk 0:00:07.3]}
19... Ne3 {[%clk 0:01:58.3]} 20. Bh3 {[%clk 0:00:02.1]} 20... Rad8 {[%clk
0:01:41.3]} 21. Nd4 {[%clk 0:00:01.8]} 21... Rxd4 {[%clk 0:01:32.1]} 22. Qxd4
{[%clk 0:00:01.6]} 22... Qxd4 {[%clk 0:01:32.3]} 23. Rxd4 {[%clk 0:00:02.1]}
23... Bxc3 {[%clk 0:01:32.9]} 0-1

[Event "*** Titled Tuesday Blitz"]
[Site "Chess.com"]
[Date "2021.04.06"]
[Round "3"]
[White "stanyga"]
[Black "Smirnov_Pavel"]
[Result "1-0"]
[WhiteElo "2650"]
[BlackElo "2871"]
[TimeControl "180+1"]
[EndTime "10:26:56 PDT"]
[Termination "stanyga won by resignation"]

1. e4 {[%clk 0:03:00.9]} 1... e5 {[%clk 0:02:59]} 2. Nf3 {[%clk 0:03:00.6]} 2...
Nc6 {[%clk 0:02:59.6]} 3. Bb5 {[%clk 0:02:59.7]} 3... a6 {[%clk 0:02:58.9]} 4.
Ba4 {[%clk 0:02:59]} 4... Nf6 {[%clk 0:02:58.4]} 5. O-O {[%clk 0:02:58.8]} 5...
Be7 {[%clk 0:02:59]} 6. Re1 {[%clk 0:02:58.8]} 6... b5 {[%clk 0:02:59]} 7. Bb3
{[%clk 0:02:58.5]} 7... O-O {[%clk 0:02:59.9]} 8. d4 {[%clk 0:02:56.5]} 8... d6
{[%clk 0:02:58.2]} 9. c3 {[%clk 0:02:55.4]} 9... Bg4 {[%clk 0:02:58.2]} 10. d5
{[%clk 0:02:54.2]} 10... Na5 {[%clk 0:02:57.4]} 11. Bc2 {[%clk 0:02:54.1]} 11...
c6 {[%clk 0:02:57.6]} 12. h3 {[%clk 0:02:50.7]} 12... Bc8 {[%clk 0:02:56.3]} 13.
dxc6 {[%clk 0:02:50.4]} 13... Qc7 {[%clk 0:02:56.4]} 14. Nbd2 {[%clk 0:02:50]}
14... Qxc6 {[%clk 0:02:55.7]} 15. Nf1 {[%clk 0:02:50.1]} 15... Be6 {[%clk
0:02:55.5]} 16. Ng5 {[%clk 0:02:49]} 16... Bd7 {[%clk 0:02:54.5]} 17. Ng3 {[%clk
0:02:44.7]} 17... h6 {[%clk 0:02:54.7]} 18. Nf3 {[%clk 0:02:44.2]} 18... Rfe8
{[%clk 0:02:53.3]} 19. Nh4 {[%clk 0:02:35.3]} 19... d5 {[%clk 0:02:30.9]} 20.
Nhf5 {[%clk 0:02:30.2]} 20... Bf8 {[%clk 0:02:30.3]} 21. exd5 {[%clk 0:02:22.2]}
21... Qxd5 {[%clk 0:02:27.6]} 22. Ne4 {[%clk 0:02:17.8]} 22... Qxd1 {[%clk
0:02:09]} 23. Nxh6+ {[%clk 0:01:54]} 23... Kh8 {[%clk 0:01:32.4]} 24. Nxf7+
{[%clk 0:01:53.1]} 24... Kg8 {[%clk 0:01:32.2]} 25. Nxf6+ {[%clk 0:01:52.7]}
25... Kxf7 {[%clk 0:01:20.8]} 26. Rxd1 {[%clk 0:01:51.9]} 26... Kxf6 {[%clk
0:01:21.7]} 27. Rxd7 {[%clk 0:01:51]} 27... Rad8 {[%clk 0:01:22.6]} 28. Ra7
{[%clk 0:01:25.2]} 28... Re6 {[%clk 0:01:14.2]} 29. h4 {[%clk 0:01:24.5]} 29...
Be7 {[%clk 0:00:53.3]} 30. Bg5+ {[%clk 0:01:13.1]} 30... Kf7 {[%clk 0:00:54.2]}
31. Bf5 {[%clk 0:01:12.5]} 31... Nc6 {[%clk 0:00:54.5]} 32. Bxe6+ {[%clk
0:01:11.2]} 32... Kxe6 {[%clk 0:00:55.4]} 33. Rxa6 {[%clk 0:01:11.3]} 1-0

[Event "*** Titled Tuesday Blitz"]
[Site "Chess.com"]
[Date "2021.04.06"]
[Round "3"]
[White "ajdemipopushi"]
[Black "mikolka1985"]
[Result "0-1"]
[WhiteElo "2428"]
[BlackElo "2657"]
[TimeControl "180+1"]
[EndTime "10:27:03 PDT"]
[Termination "mikolka1985 won on time"]

1. Nf3 {[%clk 0:03:00.9]} 1... d5 {[%clk 0:02:56.8]} 2. g3 {[%clk 0:03:01.1]}
2... c6 {[%clk 0:02:56.3]} 3. c4 {[%clk 0:03:00.9]} 3... Nf6 {[%clk 0:02:54.9]}
4. Bg2 {[%clk 0:03:01.3]} 4... dxc4 {[%clk 0:02:54.8]} 5. O-O {[%clk 0:03:00.7]}
5... Nbd7 {[%clk 0:02:54.2]} 6. Na3 {[%clk 0:02:49.9]} 6... Nb6 {[%clk
0:02:53.5]} 7. Qc2 {[%clk 0:02:50]} 7... g6 {[%clk 0:02:52.8]} 8. Nxc4 {[%clk
0:02:49.1]} 8... Nxc4 {[%clk 0:02:53.3]} 9. Qxc4 {[%clk 0:02:48.3]} 9... Bg7
{[%clk 0:02:54]} 10. b3 {[%clk 0:02:16.6]} 10... Nd5 {[%clk 0:02:49.1]} 11. Rb1
{[%clk 0:02:15]} 11... O-O {[%clk 0:02:48.4]} 12. Bb2 {[%clk 0:02:13.8]} 12...
Bxb2 {[%clk 0:02:46.1]} 13. Rxb2 {[%clk 0:02:13.8]} 13... a5 {[%clk 0:02:45.6]}
14. a3 {[%clk 0:02:10]} 14... Qd6 {[%clk 0:02:44.8]} 15. b4 {[%clk 0:01:39.3]}
15... Nc7 {[%clk 0:02:42.6]} 16. d3 {[%clk 0:01:09.7]} 16... axb4 {[%clk
0:02:41.2]} 17. axb4 {[%clk 0:01:07.1]} 17... Nb5 {[%clk 0:02:39.9]} 18. Qc5
{[%clk 0:00:26.3]} 18... Rd8 {[%clk 0:02:36.7]} 19. Qxd6 {[%clk 0:00:25.4]}
19... Rxd6 {[%clk 0:02:34.2]} 20. Nd2 {[%clk 0:00:25]} 20... Be6 {[%clk
0:02:31.3]} 21. Ne4 {[%clk 0:00:24.6]} 21... Rdd8 {[%clk 0:02:26.9]} 22. Nc5
{[%clk 0:00:24.4]} 22... Bc8 {[%clk 0:02:26.5]} 23. Rc1 {[%clk 0:00:23.5]} 23...
Kf8 {[%clk 0:02:24.1]} 24. e3 {[%clk 0:00:22]} 24... e5 {[%clk 0:02:23.3]} 25.
Bf1 {[%clk 0:00:20.9]} 25... Ke7 {[%clk 0:02:22.8]} 26. Rd1 {[%clk 0:00:18.3]}
26... Ra3 {[%clk 0:02:19.2]} 27. h4 {[%clk 0:00:17.3]} 27... Nc7 {[%clk
0:02:17.1]} 28. d4 {[%clk 0:00:15.5]} 28... exd4 {[%clk 0:02:13.6]} 29. exd4
{[%clk 0:00:15.4]} 29... b6 {[%clk 0:02:10.3]} 30. Ne4 {[%clk 0:00:13.1]} 30...
Bf5 {[%clk 0:02:07.4]} 31. Ng5 {[%clk 0:00:11.6]} 31... h6 {[%clk 0:02:06.8]}
32. Nh3 {[%clk 0:00:10.1]} 32... Ne6 {[%clk 0:02:05.5]} 33. Rbd2 {[%clk
0:00:07.5]} 33... Bg4 {[%clk 0:02:04]} 34. Re1 {[%clk 0:00:07.4]} 34... Kf6
{[%clk 0:02:02.8]} 35. Re4 {[%clk 0:00:02.9]} 35... Bf5 {[%clk 0:01:59.2]} 36.
Re3 {[%clk 0:00:02.2]} 36... Ra1 {[%clk 0:01:57.1]} 0-1

[Event "*** Titled Tuesday Blitz"]
[Site "Chess.com"]
[Date "2021.04.06"]
[Round "3"]
[White "paulrusan"]
[Black "Annagozel"]
[Result "1-0"]
[WhiteElo "2279"]
[BlackElo "1816"]
[TimeControl "180+1"]
[EndTime "10:27:04 PDT"]
[Termination "paulrusan won by checkmate"]

1. e4 {[%clk 0:02:59.7]} 1... e5 {[%clk 0:02:59]} 2. f4 {[%clk 0:02:58.4]} 2...
exf4 {[%clk 0:02:50.7]} 3. Nf3 {[%clk 0:02:58.3]} 3... d5 {[%clk 0:02:41.8]} 4.
exd5 {[%clk 0:02:57.5]} 4... Qxd5 {[%clk 0:02:39.6]} 5. Nc3 {[%clk 0:02:56.9]}
5... Qe6+ {[%clk 0:02:38.5]} 6. Kf2 {[%clk 0:02:57]} 6... Bc5+ {[%clk 0:02:38]}
7. d4 {[%clk 0:02:56.1]} 7... Bb6 {[%clk 0:02:27.5]} 8. Bb5+ {[%clk 0:02:55.1]}
8... c6 {[%clk 0:01:39.5]} 9. Re1 {[%clk 0:02:35.5]} 9... cxb5 {[%clk
0:01:36.9]} 10. Nxb5 {[%clk 0:02:34]} 10... Ne7 {[%clk 0:01:26.7]} 11. Rxe6
{[%clk 0:02:28.3]} 11... Bxe6 {[%clk 0:01:25.7]} 12. Nd6+ {[%clk 0:02:22.2]}
12... Kd7 {[%clk 0:01:25.1]} 13. Bxf4 {[%clk 0:02:21.7]} 13... Nbc6 {[%clk
0:01:17.8]} 14. c3 {[%clk 0:02:18.8]} 14... Nd5 {[%clk 0:01:16.2]} 15. Bg3
{[%clk 0:02:16.9]} 15... Rhd8 {[%clk 0:01:06.4]} 16. Nc4 {[%clk 0:02:16.6]}
16... Bc7 {[%clk 0:00:59.7]} 17. Nfe5+ {[%clk 0:02:09.9]} 17... Nxe5 {[%clk
0:00:48.4]} 18. Nxe5+ {[%clk 0:02:09.4]} 18... Ke7 {[%clk 0:00:45.8]} 19. Qh5
{[%clk 0:02:01.2]} 19... Nf6 {[%clk 0:00:38.7]} 20. Qh4 {[%clk 0:01:51.9]} 20...
Ke8 {[%clk 0:00:19.8]} 21. Re1 {[%clk 0:01:43]} 21... g5 {[%clk 0:00:18.5]} 22.
Qxg5 {[%clk 0:01:40.8]} 22... Bxe5 {[%clk 0:00:13.7]} 23. Rxe5 {[%clk
0:01:32.9]} 23... Ke7 {[%clk 0:00:13.1]} 24. Bh4 {[%clk 0:01:30.7]} 24... Rg8
{[%clk 0:00:11.9]} 25. Qxf6+ {[%clk 0:01:30.5]} 25... Kd7 {[%clk 0:00:12.8]} 26.
Qe7+ {[%clk 0:01:29.5]} 26... Kc8 {[%clk 0:00:10.3]} 27. Rc5+ {[%clk 0:01:28.3]}
27... Kb8 {[%clk 0:00:11.2]} 28. Qc7# {[%clk 0:01:27.9]} 1-0

[Event "*** Titled Tuesday Blitz"]
[Site "Chess.com"]
[Date "2021.04.06"]
[Round "3"]
[White "sau6on"]
[Black "kingnb"]
[Result "0-1"]
[WhiteElo "2369"]
[BlackElo "2565"]
[TimeControl "180+1"]
[EndTime "10:27:06 PDT"]
[Termination "kingnb won on time"]

1. e4 {[%clk 0:03:00.9]} 1... d5 {[%clk 0:03:00.1]} 2. exd5 {[%clk 0:02:59.5]}
2... Nf6 {[%clk 0:03:00.7]} 3. d4 {[%clk 0:02:57.3]} 3... Bg4 {[%clk 0:03:00.4]}
4. Nf3 {[%clk 0:02:54.7]} 4... Qxd5 {[%clk 0:02:56.3]} 5. Be2 {[%clk 0:02:53.6]}
5... Nc6 {[%clk 0:02:55.8]} 6. c4 {[%clk 0:02:52.2]} 6... Qf5 {[%clk 0:02:55.3]}
7. Be3 {[%clk 0:02:43.2]} 7... O-O-O {[%clk 0:02:54.9]} 8. Nbd2 {[%clk
0:02:42.9]} 8... e6 {[%clk 0:02:50]} 9. a3 {[%clk 0:02:19.6]} 9... Bd6 {[%clk
0:02:22.4]} 10. b4 {[%clk 0:01:41.2]} 10... Bf4 {[%clk 0:02:19.2]} 11. b5 {[%clk
0:01:36.9]} 11... Bxe3 {[%clk 0:02:19]} 12. fxe3 {[%clk 0:01:37.7]} 12... Ne7
{[%clk 0:02:17]} 13. O-O {[%clk 0:01:24.4]} 13... Qh5 {[%clk 0:02:15.9]} 14. h3
{[%clk 0:01:17.6]} 14... Nf5 {[%clk 0:02:09.9]} 15. hxg4 {[%clk 0:01:04.9]}
15... Nxg4 {[%clk 0:02:10.8]} 16. Nh4 {[%clk 0:00:49.6]} 16... Qxh4 {[%clk
0:02:04.8]} 17. Bxg4 {[%clk 0:00:48.3]} 17... Nxe3 {[%clk 0:02:05.2]} 18. Qe1
{[%clk 0:00:31.2]} 18... Qxe1 {[%clk 0:01:50.8]} 19. Raxe1 {[%clk 0:00:26.7]}
19... Nxf1 {[%clk 0:01:48.6]} 20. Nxf1 {[%clk 0:00:15.5]} 20... Rxd4 {[%clk
0:01:49.1]} 21. Be2 {[%clk 0:00:15.6]} 21... Rhd8 {[%clk 0:01:49.4]} 22. Kf2
{[%clk 0:00:14.5]} 22... Re4 {[%clk 0:01:46.7]} 23. g3 {[%clk 0:00:11.9]} 23...
f5 {[%clk 0:01:37.7]} 24. Ne3 {[%clk 0:00:09.7]} 24... Rd2 {[%clk 0:01:36.6]}
25. Kf3 {[%clk 0:00:07.6]} 25... Ra2 {[%clk 0:01:33.6]} 26. Bd3 {[%clk
0:00:04.7]} 26... Rd4 {[%clk 0:01:33.4]} 0-1

[Event "*** Titled Tuesday Blitz"]
[Site "Chess.com"]
[Date "2021.04.06"]
[Round "3"]
[White "TheCount"]
[Black "dretch"]
[Result "0-1"]
[WhiteElo "2598"]
[BlackElo "2818"]
[TimeControl "180+1"]
[EndTime "10:27:08 PDT"]
[Termination "dretch won on time"]

1. Nf3 {[%clk 0:02:59.6]} 1... d5 {[%clk 0:02:59.4]} 2. g3 {[%clk 0:03:00.2]}
2... Bg4 {[%clk 0:02:59.4]} 3. Bg2 {[%clk 0:03:00.8]} 3... Nd7 {[%clk
0:02:59.7]} 4. O-O {[%clk 0:02:56.6]} 4... e6 {[%clk 0:02:59.3]} 5. c4 {[%clk
0:02:52.1]} 5... Ngf6 {[%clk 0:02:56.5]} 6. cxd5 {[%clk 0:02:51.5]} 6... exd5
{[%clk 0:02:56.6]} 7. h3 {[%clk 0:02:46.8]} 7... Bxf3 {[%clk 0:02:49.3]} 8. Bxf3
{[%clk 0:02:46.8]} 8... Bd6 {[%clk 0:02:49.2]} 9. d4 {[%clk 0:02:36.1]} 9... O-O
{[%clk 0:02:46.6]} 10. Nc3 {[%clk 0:02:36.7]} 10... c6 {[%clk 0:02:46.5]} 11.
Kg2 {[%clk 0:02:33.5]} 11... Re8 {[%clk 0:02:45.8]} 12. h4 {[%clk 0:02:32.7]}
12... Ne4 {[%clk 0:02:41.5]} 13. Qc2 {[%clk 0:02:23.4]} 13... f5 {[%clk
0:02:39.5]} 14. e3 {[%clk 0:02:04.3]} 14... Ndf6 {[%clk 0:02:28.5]} 15. Rb1
{[%clk 0:01:55.8]} 15... Qe7 {[%clk 0:02:04.4]} 16. a3 {[%clk 0:01:48.5]} 16...
Qf7 {[%clk 0:02:02.4]} 17. b4 {[%clk 0:01:42.1]} 17... Qg6 {[%clk 0:02:01.9]}
18. Nxe4 {[%clk 0:01:18]} 18... Nxe4 {[%clk 0:02:00.1]} 19. Bxe4 {[%clk
0:00:59.3]} 19... Rxe4 {[%clk 0:01:59.1]} 20. b5 {[%clk 0:00:47.2]} 20... Rg4
{[%clk 0:01:56.3]} 21. Rh1 {[%clk 0:00:12.7]} 21... Bxg3 {[%clk 0:01:38.2]} 22.
fxg3 {[%clk 0:00:13.6]} 22... Rxg3+ {[%clk 0:01:39.1]} 23. Kf1 {[%clk 0:00:14]}
23... Qg4 {[%clk 0:01:38.8]} 24. Ke1 {[%clk 0:00:06.4]} 24... Re8 {[%clk
0:01:31.3]} 25. Qe2 {[%clk 0:00:03.9]} 25... Qe4 {[%clk 0:01:30.4]} 26. Rf1
{[%clk 0:00:00.7]} 26... Qxb1 {[%clk 0:01:30]} 27. bxc6 {[%clk 0:00:00.4]} 27...
Rgxe3 {[%clk 0:01:28.2]} 0-1